Department family,Entity,Date,Expense Type,Expense area,Supplier,Transaction number,AP Amount (�)
Department of Health,NHS Barnsley CCG,31/03/2017,C&M-APMS Contract Value,PRC DELEGATED CO-COMMISSIONING,BARNSLEY HEALTHCARE FEDERATION,16396609,"24,372.67 "
Department of Health,NHS Barnsley CCG,31/03/2017,C&M-APMS OOH Opt Outs,PRC DELEGATED CO-COMMISSIONING,BARNSLEY HEALTHCARE FEDERATION,16396609,2.84 
Department of Health,NHS Barnsley CCG,31/03/2017,C&M-APMS Prem Actual Rent,PRC DELEGATED CO-COMMISSIONING,BARNSLEY HEALTHCARE FEDERATION,16396609,"1,429.55 "
Department of Health,NHS Barnsley CCG,31/03/2017,C&M-APMS QOF Aspiration,PRC DELEGATED CO-COMMISSIONING,BARNSLEY HEALTHCARE FEDERATION,16396609,"2,248.38 "
Department of Health,NHS Barnsley CCG,31/03/2017,C&M-PMS Contract Value,PRC DELEGATED CO-COMMISSIONING,BARNSLEY HEALTHCARE FEDERATION,16396609,20.68 
Department of Health,NHS Barnsley CCG,31/03/2017,C&M-PMS Out of Hours Opt Outs,PRC DELEGATED CO-COMMISSIONING,BARNSLEY HEALTHCARE FEDERATION,16396609,15.23 
Department of Health,NHS Barnsley CCG,31/03/2017,C&M-APMS Contract Value,PRC DELEGATED CO-COMMISSIONING,BARNSLEY HEALTHCARE FEDERATION,16396612,248.31 
Department of Health,NHS Barnsley CCG,31/03/2017,C&M-APMS OOH Opt Outs,PRC DELEGATED CO-COMMISSIONING,BARNSLEY HEALTHCARE FEDERATION,16396612,"30,415.92 "
Department of Health,NHS Barnsley CCG,31/03/2017,C&M-APMS Prem Other,PRC DELEGATED CO-COMMISSIONING,BARNSLEY HEALTHCARE FEDERATION,16396612,"6,795.48 "
Department of Health,NHS Barnsley CCG,31/03/2017,C&M-APMS QOF Aspiration,PRC DELEGATED CO-COMMISSIONING,BARNSLEY HEALTHCARE FEDERATION,16396612,"1,999.71 "
Department of Health,NHS Barnsley CCG,31/03/2017,C&M-APMS Contract Value,PRC DELEGATED CO-COMMISSIONING,BARNSLEY HEALTHCARE FEDERATION,16396614,"31,874.61 "
Department of Health,NHS Barnsley CCG,31/03/2017,C&M-APMS OOH Opt Outs,PRC DELEGATED CO-COMMISSIONING,BARNSLEY HEALTHCARE FEDERATION,16396614,295.26 
Department of Health,NHS Barnsley CCG,31/03/2017,C&M-APMS QOF Aspiration,PRC DELEGATED CO-COMMISSIONING,BARNSLEY HEALTHCARE FEDERATION,16396614,"2,478.09 "
Department of Health,NHS Barnsley CCG,31/03/2017,C&M-PMS Contract Value,PRC DELEGATED CO-COMMISSIONING,BARNSLEY HEALTHCARE FEDERATION,16400641,"(32,895.18)"
Department of Health,NHS Barnsley CCG,31/03/2017,C&M-PMS GP Statutory Levy,PRC DELEGATED CO-COMMISSIONING,BARNSLEY HEALTHCARE FEDERATION,16400641,(142.85)
Department of Health,NHS Barnsley CCG,31/03/2017,C&M-PMS Out of Hours Opt Outs,PRC DELEGATED CO-COMMISSIONING,BARNSLEY HEALTHCARE FEDERATION,16400641,(81.06)
Department of Health,NHS Barnsley CCG,31/03/2017,C&M-PMS Voluntary Levy,PRC DELEGATED CO-COMMISSIONING,BARNSLEY HEALTHCARE FEDERATION,16400641,(24.99)
Department of Health,NHS Barnsley CCG,31/03/2017,ME-PMS GP Pension EEs-PMS,PRC DELEGATED CO-COMMISSIONING,BARNSLEY HEALTHCARE FEDERATION,16400641,(704.17)
Department of Health,NHS Barnsley CCG,31/03/2017,ME-PMS GP Pension ERs Adjs - PMS,PRC DELEGATED CO-COMMISSIONING,BARNSLEY HEALTHCARE FEDERATION,16400641,(805.57)
Department of Health,NHS Barnsley CCG,31/03/2017,C&M-PMS Contract Value,PRC DELEGATED CO-COMMISSIONING,BARNSLEY HEALTHCARE FEDERATION,16425023,"70,045.80 "
Department of Health,NHS Barnsley CCG,31/03/2017,C&M-PMS DES Extended Hours Access,PRC DELEGATED CO-COMMISSIONING,BARNSLEY HEALTHCARE FEDERATION,16425023,"4,026.10 "
Department of Health,NHS Barnsley CCG,31/03/2017,C&M-PMS DES Minor Surgery,PRC DELEGATED CO-COMMISSIONING,BARNSLEY HEALTHCARE FEDERATION,16425023,681.92 
Department of Health,NHS Barnsley CCG,31/03/2017,C&M-PMS Out of Hours Opt Outs,PRC DELEGATED CO-COMMISSIONING,BARNSLEY HEALTHCARE FEDERATION,16425023,"(1,765.12)"
Department of Health,NHS Barnsley CCG,31/03/2017,C&M-PMS Prem Healthcentre Rent,PRC DELEGATED CO-COMMISSIONING,BARNSLEY HEALTHCARE FEDERATION,16425023,"10,835.69 "
Department of Health,NHS Barnsley CCG,31/03/2017,C&M-PMS QOF Aspiration,PRC DELEGATED CO-COMMISSIONING,BARNSLEY HEALTHCARE FEDERATION,16425023,"4,195.24 "
Department of Health,NHS Barnsley CCG,31/03/2017,ME-PMS GP Pension EEs Adjs - PMS,PRC DELEGATED CO-COMMISSIONING,BARNSLEY HEALTHCARE FEDERATION,16425023,"2,916.65 "
Department of Health,NHS Barnsley CCG,31/03/2017,ME-PMS GP Pension ERs Adjs - PMS,PRC DELEGATED CO-COMMISSIONING,BARNSLEY HEALTHCARE FEDERATION,16425023,"3,336.65 "
Department of Health,NHS Barnsley CCG,31/03/2017,Miscellaneous Expenditure (L9),PROGRAMME PROJECTS,BARNSLEY HEALTHCARE FEDERATION,16534896,"128,200.00 "
Department of Health,NHS Barnsley CCG,31/03/2017,Clinical&Medical-Serv Recd-F Trsts,PROGRAMME PROJECTS,BARNSLEY HOSPITAL NHS FOUNDATION TRUST,16298730,"34,786.00 "
Department of Health,NHS Barnsley CCG,31/03/2017,Hcare Srv Rec Fdtn Trust-CQUIN,ACUTE COMMISSIONING,BARNSLEY HOSPITAL NHS FOUNDATION TRUST,16302975,"9,905.14 "
Department of Health,NHS Barnsley CCG,31/03/2017,Hcare Srv Rec Fdtn Trust-Contract Baseline,ACUTE COMMISSIONING,BARNSLEY HOSPITAL NHS FOUNDATION TRUST,16302975,"301,703.17 "
Department of Health,NHS Barnsley CCG,31/03/2017,Hcare Srv Rec Fdtn Trust-CQUIN,ACUTE COMMISSIONING,BARNSLEY HOSPITAL NHS FOUNDATION TRUST,16370581,"11,856.00 "
Department of Health,NHS Barnsley CCG,31/03/2017,Hcare Srv Rec Fdtn Trust-Contract Baseline,ACUTE COMMISSIONING,BARNSLEY HOSPITAL NHS FOUNDATION TRUST,16370581,"579,878.00 "
Department of Health,NHS Barnsley CCG,31/03/2017,Hcare Srv Rec Fdtn Trust-CQUIN,ACUTE COMMISSIONING,BARNSLEY HOSPITAL NHS FOUNDATION TRUST,16370582,"11,856.00 "
Department of Health,NHS Barnsley CCG,31/03/2017,Hcare Srv Rec Fdtn Trust-Contract Baseline,ACUTE COMMISSIONING,BARNSLEY HOSPITAL NHS FOUNDATION TRUST,16370582,"579,878.00 "
Department of Health,NHS Barnsley CCG,31/03/2017,Hcare Srv Rec Fdtn Trust-Contract Baseline,ACUTE COMMISSIONING,BARNSLEY HOSPITAL NHS FOUNDATION TRUST,16456680,"11,273,168.48 "
Department of Health,NHS Barnsley CCG,31/03/2017,Hcare Srv Rec Fdtn Trust-Contract Baseline,ACUTE COMMISSIONING,BARNSLEY HOSPITAL NHS FOUNDATION TRUST,16456695,"(11,273,168.48)"
Department of Health,NHS Barnsley CCG,31/03/2017,Hcare Srv Rec Fdtn Trust-CQUIN,ACUTE COMMISSIONING,BARNSLEY HOSPITAL NHS FOUNDATION TRUST,16466341,"19,020.39 "
Department of Health,NHS Barnsley CCG,31/03/2017,Hcare Srv Rec Fdtn Trust-Contract Baseline,ACUTE COMMISSIONING,BARNSLEY HOSPITAL NHS FOUNDATION TRUST,16466341,"787,287.51 "
Department of Health,NHS Barnsley CCG,31/03/2017,Hcare Srv Rec Fdtn Trust-CQUIN,ACUTE COMMISSIONING,BARNSLEY HOSPITAL NHS FOUNDATION TRUST,16466342,"252,534.00 "
Department of Health,NHS Barnsley CCG,31/03/2017,Hcare Srv Rec Fdtn Trust-Contract Baseline,ACUTE COMMISSIONING,BARNSLEY HOSPITAL NHS FOUNDATION TRUST,16466342,"10,595,634.48 "
Department of Health,NHS Barnsley CCG,31/03/2017,Hcare Srv Rec Fdtn Trust-Contract Baseline,ACUTE COMMISSIONING,BARNSLEY HOSPITAL NHS FOUNDATION TRUST,16565494,"425,000.00 "
Department of Health,NHS Barnsley CCG,31/03/2017,Hcare Srv Rec Fdtn Trust-CQUIN,ACUTE COMMISSIONING,BARNSLEY HOSPITAL NHS FOUNDATION TRUST,16628567,"17,540.00 "
Department of Health,NHS Barnsley CCG,31/03/2017,Hcare Srv Rec Fdtn Trust-Contract Baseline,ACUTE COMMISSIONING,BARNSLEY HOSPITAL NHS FOUNDATION TRUST,16628567,"761,821.00 "
Department of Health,NHS Barnsley CCG,31/03/2017,Soc Care-Bed-Based Int Care Servs,COMMUNITY SERVICES,BARNSLEY METROPOLITAN BOROUGH COUNCIL,16456730,"614,166.67 "
Department of Health,NHS Barnsley CCG,31/03/2017,Soc Care-Maintaining Eligib Crit,COMMUNITY SERVICES,BARNSLEY METROPOLITAN BOROUGH COUNCIL,16456730,"790,833.33 "
Department of Health,NHS Barnsley CCG,31/03/2017,Soc Care-Other Soc Care,COMMUNITY SERVICES,BARNSLEY METROPOLITAN BOROUGH COUNCIL,16456730,"116,667.00 "
Department of Health,NHS Barnsley CCG,31/03/2017,Soc Care-Re-ablement services,COMMUNITY SERVICES,BARNSLEY METROPOLITAN BOROUGH COUNCIL,16456730,"8,166.67 "
Department of Health,NHS Barnsley CCG,31/03/2017,Social Care-Res Short Stay Exp,COMMUNITY SERVICES,BARNSLEY METROPOLITAN BOROUGH COUNCIL,16456730,"126,833.33 "
Department of Health,NHS Barnsley CCG,31/03/2017,Cont Care- Children,CHC CHILDREN,BARNSLEY METROPOLITAN BOROUGH COUNCIL,16560867,"120,653.11 "
Department of Health,NHS Barnsley CCG,31/03/2017,Chrgs from SLA,COMMISSIONING,BARNSLEY METROPOLITAN BOROUGH COUNCIL,16560884,"16,667.00 "
Department of Health,NHS Barnsley CCG,31/03/2017,Clinical&Medical-Othe Public Sector,COMMISSIONING - NON ACUTE,BARNSLEY METROPOLITAN BOROUGH COUNCIL,16560884,"357,618.00 "
Department of Health,NHS Barnsley CCG,31/03/2017,Clinical&Medical-Othe Public Sector,MENTAL HEALTH SERVICES - OTHER,BARNSLEY METROPOLITAN BOROUGH COUNCIL,16560884,"25,281.00 "
Department of Health,NHS Barnsley CCG,31/03/2017,Clinical&Medical-Othe Public Sector,WINTER PRESSURES,BARNSLEY METROPOLITAN BOROUGH COUNCIL,16560884,"134,640.00 "
Department of Health,NHS Barnsley CCG,31/03/2017,Clinical&Medical-Voluntary Sector,CHILD AND ADOLESCENT MENTAL HEALTH,BARNSLEY METROPOLITAN BOROUGH COUNCIL,16560884,"147,709.00 "
Department of Health,NHS Barnsley CCG,31/03/2017,Cont Care- Adult 100% Fully Funded,CHC ADULT FULLY FUNDED,BARNSLEY METROPOLITAN BOROUGH COUNCIL,16560884,"5,232.00 "
Department of Health,NHS Barnsley CCG,31/03/2017,Expenditure on Drugs Action Team,MENTAL HEALTH SERVICES - SPECIALIST SERVICES,BARNSLEY METROPOLITAN BOROUGH COUNCIL,16560884,"41,667.00 "
Department of Health,NHS Barnsley CCG,31/03/2017,GROSSRECOVEMPBEN - SALARIES & WAGES,COLLABORATIVE COMMISSIONING,BARNSLEY METROPOLITAN BOROUGH COUNCIL,16560884,"(4,833.00)"
Department of Health,NHS Barnsley CCG,31/03/2017,Local Authority Revenue - Contract,COMMUNITY SERVICES,BARNSLEY METROPOLITAN BOROUGH COUNCIL,16560884,"92,360.00 "
Department of Health,NHS Barnsley CCG,31/03/2017,Local AuthorityRevenue-Non-Contract,COMMUNITY SERVICES,BARNSLEY METROPOLITAN BOROUGH COUNCIL,16560884,"96,344.00 "
Department of Health,NHS Barnsley CCG,31/03/2017,Local AuthorityRevenue-Non-Contract,PROGRAMME PROJECTS,BARNSLEY METROPOLITAN BOROUGH COUNCIL,16560884,"500,000.00 "
Department of Health,NHS Barnsley CCG,31/03/2017,Local AuthorityRevenue-Non-Contract,Winter Resilience,BARNSLEY METROPOLITAN BOROUGH COUNCIL,16560884,"23,000.00 "
Department of Health,NHS Barnsley CCG,31/03/2017,Other professional fees,CONTINUING HEALTHCARE ASSESSMENT & SUPPORT,BARNSLEY METROPOLITAN BOROUGH COUNCIL,16560884,"(4,664.00)"
Department of Health,NHS Barnsley CCG,31/03/2017,Participation Fees,COMMUNITY SERVICES,BARNSLEY METROPOLITAN BOROUGH COUNCIL,16560884,"11,750.00 "
Department of Health,NHS Barnsley CCG,31/03/2017,Services From Local Authorities,COMMISSIONING - NON ACUTE,BARNSLEY METROPOLITAN BOROUGH COUNCIL,16560884,"6,304.00 "
Department of Health,NHS Barnsley CCG,31/03/2017,Chrgs from SLA,COMMISSIONING,BARNSLEY METROPOLITAN BOROUGH COUNCIL,16632237,"16,667.00 "
Department of Health,NHS Barnsley CCG,31/03/2017,Clinical&Medical-Othe Public Sector,COMMISSIONING - NON ACUTE,BARNSLEY METROPOLITAN BOROUGH COUNCIL,16632237,"357,618.00 "
Department of Health,NHS Barnsley CCG,31/03/2017,Clinical&Medical-Othe Public Sector,MENTAL HEALTH SERVICES - OTHER,BARNSLEY METROPOLITAN BOROUGH COUNCIL,16632237,"25,281.00 "
Department of Health,NHS Barnsley CCG,31/03/2017,Clinical&Medical-Voluntary Sector,CHILD AND ADOLESCENT MENTAL HEALTH,BARNSLEY METROPOLITAN BOROUGH COUNCIL,16632237,"28,709.00 "
Department of Health,NHS Barnsley CCG,31/03/2017,Cont Care- Adult 100% Fully Funded,CHC ADULT FULLY FUNDED,BARNSLEY METROPOLITAN BOROUGH COUNCIL,16632237,"5,232.00 "
Department of Health,NHS Barnsley CCG,31/03/2017,Expenditure on Drugs Action Team,MENTAL HEALTH SERVICES - SPECIALIST SERVICES,BARNSLEY METROPOLITAN BOROUGH COUNCIL,16632237,"41,667.00 "
Department of Health,NHS Barnsley CCG,31/03/2017,GROSSRECOVEMPBEN - SALARIES & WAGES,COLLABORATIVE COMMISSIONING,BARNSLEY METROPOLITAN BOROUGH COUNCIL,16632237,"(4,833.00)"
Department of Health,NHS Barnsley CCG,31/03/2017,Local AuthorityRevenue-Non-Contract,COMMUNITY SERVICES,BARNSLEY METROPOLITAN BOROUGH COUNCIL,16632237,"(3,656.00)"
Department of Health,NHS Barnsley CCG,31/03/2017,Participation Fees,COMMUNITY SERVICES,BARNSLEY METROPOLITAN BOROUGH COUNCIL,16632237,"11,750.00 "
Department of Health,NHS Barnsley CCG,31/03/2017,Services From Local Authorities,COMMISSIONING - NON ACUTE,BARNSLEY METROPOLITAN BOROUGH COUNCIL,16632237,"6,304.00 "
Department of Health,NHS Barnsley CCG,31/03/2017,Soc Care-Other Soc Care,COMMUNITY SERVICES,BARNSLEY METROPOLITAN BOROUGH COUNCIL,16632237,"25,000.00 "
Department of Health,NHS Barnsley CCG,31/03/2017,Cont Care-Funded Nursing Care Allow,FUNDED NURSING CARE,BARNSLEY METROPOLITAN BOROUGH COUNCIL,16693268,"25,000.00 "
Department of Health,NHS Barnsley CCG,31/03/2017,Cont Care-Funded Nursing Care Allow,FUNDED NURSING CARE,BARNSLEY METROPOLITAN BOROUGH COUNCIL,16693454,"(25,000.00)"
Department of Health,NHS Barnsley CCG,31/03/2017,Clinical&Medical-Commercial Sector,ACUTE COMMISSIONING,BMI HEALTHCARE COLLECTIONS,16299029,"37,156.35 "
Department of Health,NHS Barnsley CCG,31/03/2017,Clinical&Medical-Commercial Sector,ACUTE COMMISSIONING,CARE UK CLINICAL SERVICES LTD,16456687,"27,286.07 "
Department of Health,NHS Barnsley CCG,31/03/2017,Clinical&Medical-Commercial Sector,ACUTE COMMISSIONING,CLAREMONT HOSPITAL,16371904,"48,289.00 "
Department of Health,NHS Barnsley CCG,31/03/2017,Clinical&Medical-Commercial Sector,ACUTE COMMISSIONING,CLAREMONT HOSPITAL,16560740,"28,934.00 "
Department of Health,NHS Barnsley CCG,31/03/2017,C&M-GMS DES Extended Hours Access,PRC DELEGATED CO-COMMISSIONING,NHS BARNLSEY CCG GP PRACTICE,16659197,"9,584.56 "
Department of Health,NHS Barnsley CCG,31/03/2017,C&M-GMS Global Sum,PRC DELEGATED CO-COMMISSIONING,NHS BARNLSEY CCG GP PRACTICE,16659197,"73,894.62 "
Department of Health,NHS Barnsley CCG,31/03/2017,C&M-GMS PCO Seniority,PRC DELEGATED CO-COMMISSIONING,NHS BARNLSEY CCG GP PRACTICE,16659197,319.65 
Department of Health,NHS Barnsley CCG,31/03/2017,C&M-GMS Prem Healthcentre Rent,PRC DELEGATED CO-COMMISSIONING,NHS BARNLSEY CCG GP PRACTICE,16659197,"24,168.15 "
Department of Health,NHS Barnsley CCG,31/03/2017,C&M-GMS QOF Aspiration,PRC DELEGATED CO-COMMISSIONING,NHS BARNLSEY CCG GP PRACTICE,16659197,"4,803.65 "
Department of Health,NHS Barnsley CCG,31/03/2017,C&M-PMS Contract Value,PRC DELEGATED CO-COMMISSIONING,NHS BARNLSEY CCG GP PRACTICE,16400637,"(42,283.78)"
Department of Health,NHS Barnsley CCG,31/03/2017,C&M-PMS DES UNPLANNED ADMISSIONS,PRC DELEGATED CO-COMMISSIONING,NHS BARNLSEY CCG GP PRACTICE,16400637,"(1,637.50)"
Department of Health,NHS Barnsley CCG,31/03/2017,C&M-PMS GP Statutory Levy,PRC DELEGATED CO-COMMISSIONING,NHS BARNLSEY CCG GP PRACTICE,16400637,(205.38)
Department of Health,NHS Barnsley CCG,31/03/2017,C&M-PMS Out of Hours Opt Outs,PRC DELEGATED CO-COMMISSIONING,NHS BARNLSEY CCG GP PRACTICE,16400637,(37.34)
Department of Health,NHS Barnsley CCG,31/03/2017,C&M-PMS Voluntary Levy,PRC DELEGATED CO-COMMISSIONING,NHS BARNLSEY CCG GP PRACTICE,16400637,(35.92)
Department of Health,NHS Barnsley CCG,31/03/2017,C&M-PMS Contract Value,PRC DELEGATED CO-COMMISSIONING,NHS BARNLSEY CCG GP PRACTICE,16400638,"88,321.86 "
Department of Health,NHS Barnsley CCG,31/03/2017,C&M-PMS Out of Hours Opt Outs,PRC DELEGATED CO-COMMISSIONING,NHS BARNLSEY CCG GP PRACTICE,16400638,"(2,238.32)"
Department of Health,NHS Barnsley CCG,31/03/2017,C&M-PMS PCO Seniority,PRC DELEGATED CO-COMMISSIONING,NHS BARNLSEY CCG GP PRACTICE,16400638,171.27 
Department of Health,NHS Barnsley CCG,31/03/2017,C&M-PMS QOF Aspiration,PRC DELEGATED CO-COMMISSIONING,NHS BARNLSEY CCG GP PRACTICE,16400638,"4,886.06 "
Department of Health,NHS Barnsley CCG,31/03/2017,Hcare Srv Rec Fdtn Trust-CQUIN,ACUTE COMMISSIONING,DONCASTER AND BASSETLAW HOSPITALS NHS FOUNDATION TRUST,16313987,"564,657.00 "
Department of Health,NHS Barnsley CCG,31/03/2017,C&M-PMS Contract Value,PRC DELEGATED CO-COMMISSIONING,NHS BARNLSEY CCG GP PRACTICE,16396584,"(80,798.74)"
Department of Health,NHS Barnsley CCG,31/03/2017,C&M-PMS GP Statutory Levy,PRC DELEGATED CO-COMMISSIONING,NHS BARNLSEY CCG GP PRACTICE,16396584,(357.33)
Department of Health,NHS Barnsley CCG,31/03/2017,C&M-PMS Out of Hours Opt Outs,PRC DELEGATED CO-COMMISSIONING,NHS BARNLSEY CCG GP PRACTICE,16396584,(64.54)
Department of Health,NHS Barnsley CCG,31/03/2017,C&M-PMS Voluntary Levy,PRC DELEGATED CO-COMMISSIONING,NHS BARNLSEY CCG GP PRACTICE,16396584,(62.50)
Department of Health,NHS Barnsley CCG,31/03/2017,ME-PMS GP Pension EEs-PMS,PRC DELEGATED CO-COMMISSIONING,NHS BARNLSEY CCG GP PRACTICE,16396584,"(7,020.00)"
Department of Health,NHS Barnsley CCG,31/03/2017,ME-PMS GP Pension ERs Adjs - PMS,PRC DELEGATED CO-COMMISSIONING,NHS BARNLSEY CCG GP PRACTICE,16396584,"(7,435.99)"
Department of Health,NHS Barnsley CCG,31/03/2017,C&M-PMS Contract Value,PRC DELEGATED CO-COMMISSIONING,NHS BARNLSEY CCG GP PRACTICE,16425022,"165,167.60 "
Department of Health,NHS Barnsley CCG,31/03/2017,C&M-PMS DES Extended Hours Access,PRC DELEGATED CO-COMMISSIONING,NHS BARNLSEY CCG GP PRACTICE,16425022,"10,477.56 "
Department of Health,NHS Barnsley CCG,31/03/2017,C&M-PMS Out of Hours Opt Outs,PRC DELEGATED CO-COMMISSIONING,NHS BARNLSEY CCG GP PRACTICE,16425022,"(4,275.09)"
Department of Health,NHS Barnsley CCG,31/03/2017,C&M-PMS PCO Seniority,PRC DELEGATED CO-COMMISSIONING,NHS BARNLSEY CCG GP PRACTICE,16425022,"1,349.60 "
Department of Health,NHS Barnsley CCG,31/03/2017,C&M-PMS Prem Healthcentre Rent,PRC DELEGATED CO-COMMISSIONING,NHS BARNLSEY CCG GP PRACTICE,16425022,"19,781.47 "
Department of Health,NHS Barnsley CCG,31/03/2017,C&M-PMS Prem Notional Rent,PRC DELEGATED CO-COMMISSIONING,NHS BARNLSEY CCG GP PRACTICE,16425022,"1,833.33 "
Department of Health,NHS Barnsley CCG,31/03/2017,C&M-PMS Prem Rates,PRC DELEGATED CO-COMMISSIONING,NHS BARNLSEY CCG GP PRACTICE,16425022,270.26 
Department of Health,NHS Barnsley CCG,31/03/2017,C&M-PMS QOF Aspiration,PRC DELEGATED CO-COMMISSIONING,NHS BARNLSEY CCG GP PRACTICE,16425022,"9,268.60 "
Department of Health,NHS Barnsley CCG,31/03/2017,ME - PMS GP Prior Year ERs,PRC DELEGATED CO-COMMISSIONING,NHS BARNLSEY CCG GP PRACTICE,16425022,"1,079.50 "
Department of Health,NHS Barnsley CCG,31/03/2017,ME-PMS GP Prior Year EEs,PRC DELEGATED CO-COMMISSIONING,NHS BARNLSEY CCG GP PRACTICE,16425022,"1,058.25 "
Department of Health,NHS Barnsley CCG,31/03/2017,C&M-PMS Contract Value,PRC DELEGATED CO-COMMISSIONING,NHS BARNLSEY CCG GP PRACTICE,16396586,"28,512.10 "
Department of Health,NHS Barnsley CCG,31/03/2017,C&M-PMS Out of Hours Opt Outs,PRC DELEGATED CO-COMMISSIONING,NHS BARNLSEY CCG GP PRACTICE,16396586,(750.80)
Department of Health,NHS Barnsley CCG,31/03/2017,C&M-PMS Prem Actual Rent,PRC DELEGATED CO-COMMISSIONING,NHS BARNLSEY CCG GP PRACTICE,16396586,674.50 
Department of Health,NHS Barnsley CCG,31/03/2017,C&M-PMS QOF Aspiration,PRC DELEGATED CO-COMMISSIONING,NHS BARNLSEY CCG GP PRACTICE,16396586,"1,375.99 "
Department of Health,NHS Barnsley CCG,31/03/2017,C&M-PMS Contract Value,PRC DELEGATED CO-COMMISSIONING,NHS BARNLSEY CCG GP PRACTICE,16396587,"(42,224.08)"
Department of Health,NHS Barnsley CCG,31/03/2017,C&M-PMS GP Statutory Levy,PRC DELEGATED CO-COMMISSIONING,NHS BARNLSEY CCG GP PRACTICE,16396587,(224.14)
Department of Health,NHS Barnsley CCG,31/03/2017,C&M-PMS Out of Hours Opt Outs,PRC DELEGATED CO-COMMISSIONING,NHS BARNLSEY CCG GP PRACTICE,16396587,(81.87)
Department of Health,NHS Barnsley CCG,31/03/2017,C&M-PMS Voluntary Levy,PRC DELEGATED CO-COMMISSIONING,NHS BARNLSEY CCG GP PRACTICE,16396587,(39.21)
Department of Health,NHS Barnsley CCG,31/03/2017,ME-PMS GP Pension EEs-PMS,PRC DELEGATED CO-COMMISSIONING,NHS BARNLSEY CCG GP PRACTICE,16396587,"(3,522.50)"
Department of Health,NHS Barnsley CCG,31/03/2017,ME-PMS GP Pension ERs Adjs - PMS,PRC DELEGATED CO-COMMISSIONING,NHS BARNLSEY CCG GP PRACTICE,16396587,"(3,598.83)"
Department of Health,NHS Barnsley CCG,31/03/2017,C&M-PMS Contract Value,PRC DELEGATED CO-COMMISSIONING,NHS BARNLSEY CCG GP PRACTICE,16396588,"90,119.62 "
Department of Health,NHS Barnsley CCG,31/03/2017,C&M-PMS DES Extended Hours Access,PRC DELEGATED CO-COMMISSIONING,NHS BARNLSEY CCG GP PRACTICE,16396588,"6,280.46 "
Department of Health,NHS Barnsley CCG,31/03/2017,C&M-PMS Out of Hours Opt Outs,PRC DELEGATED CO-COMMISSIONING,NHS BARNLSEY CCG GP PRACTICE,16396588,"(2,381.67)"
Department of Health,NHS Barnsley CCG,31/03/2017,C&M-PMS PCO Seniority,PRC DELEGATED CO-COMMISSIONING,NHS BARNLSEY CCG GP PRACTICE,16396588,"3,503.04 "
Department of Health,NHS Barnsley CCG,31/03/2017,C&M-PMS Prem Healthcentre Rent,PRC DELEGATED CO-COMMISSIONING,NHS BARNLSEY CCG GP PRACTICE,16396588,"21,557.03 "
Department of Health,NHS Barnsley CCG,31/03/2017,C&M-PMS QOF Aspiration,PRC DELEGATED CO-COMMISSIONING,NHS BARNLSEY CCG GP PRACTICE,16396588,"4,879.28 "
Department of Health,NHS Barnsley CCG,31/03/2017,C&M-GMS DES Extended Hours Access,PRC DELEGATED CO-COMMISSIONING,NHS BARNLSEY CCG GP PRACTICE,16659199,"9,177.00 "
Department of Health,NHS Barnsley CCG,31/03/2017,C&M-GMS Global Sum,PRC DELEGATED CO-COMMISSIONING,NHS BARNLSEY CCG GP PRACTICE,16659199,"67,123.92 "
Department of Health,NHS Barnsley CCG,31/03/2017,C&M-GMS PCO Seniority,PRC DELEGATED CO-COMMISSIONING,NHS BARNLSEY CCG GP PRACTICE,16659199,"3,976.90 "
Department of Health,NHS Barnsley CCG,31/03/2017,C&M-GMS Prem Notional Rent,PRC DELEGATED CO-COMMISSIONING,NHS BARNLSEY CCG GP PRACTICE,16659199,"4,483.33 "
Department of Health,NHS Barnsley CCG,31/03/2017,C&M-GMS Prem Rates,PRC DELEGATED CO-COMMISSIONING,NHS BARNLSEY CCG GP PRACTICE,16659199,"1,751.93 "
Department of Health,NHS Barnsley CCG,31/03/2017,C&M-GMS QOF Aspiration,PRC DELEGATED CO-COMMISSIONING,NHS BARNLSEY CCG GP PRACTICE,16659199,"8,046.05 "
Department of Health,NHS Barnsley CCG,31/03/2017,C&M-GMS DES Extended Hours Access,PRC DELEGATED CO-COMMISSIONING,NHS BARNLSEY CCG GP PRACTICE,16659201,"10,644.76 "
Department of Health,NHS Barnsley CCG,31/03/2017,C&M-GMS DES Minor Surgery,PRC DELEGATED CO-COMMISSIONING,NHS BARNLSEY CCG GP PRACTICE,16659201,"2,131.00 "
Department of Health,NHS Barnsley CCG,31/03/2017,C&M-GMS Global Sum,PRC DELEGATED CO-COMMISSIONING,NHS BARNLSEY CCG GP PRACTICE,16659201,"83,891.00 "
Department of Health,NHS Barnsley CCG,31/03/2017,C&M-GMS PCO Seniority,PRC DELEGATED CO-COMMISSIONING,NHS BARNLSEY CCG GP PRACTICE,16659201,"2,255.96 "
Department of Health,NHS Barnsley CCG,31/03/2017,C&M-GMS Prem Actual Rent,PRC DELEGATED CO-COMMISSIONING,NHS BARNLSEY CCG GP PRACTICE,16659201,"1,572.92 "
Department of Health,NHS Barnsley CCG,31/03/2017,C&M-GMS Prem Healthcentre Rent,PRC DELEGATED CO-COMMISSIONING,NHS BARNLSEY CCG GP PRACTICE,16659201,"3,289.55 "
Department of Health,NHS Barnsley CCG,31/03/2017,C&M-GMS Prem Rates,PRC DELEGATED CO-COMMISSIONING,NHS BARNLSEY CCG GP PRACTICE,16659201,"1,111.18 "
Department of Health,NHS Barnsley CCG,31/03/2017,C&M-GMS Prem Water Rates,PRC DELEGATED CO-COMMISSIONING,NHS BARNLSEY CCG GP PRACTICE,16659201,50.55 
Department of Health,NHS Barnsley CCG,31/03/2017,C&M-GMS QOF Aspiration,PRC DELEGATED CO-COMMISSIONING,NHS BARNLSEY CCG GP PRACTICE,16659201,"9,164.28 "
Department of Health,NHS Barnsley CCG,31/03/2017,C&M-PMS Contract Value,PRC DELEGATED CO-COMMISSIONING,NHS BARNLSEY CCG GP PRACTICE,16396591,"(108,559.55)"
Department of Health,NHS Barnsley CCG,31/03/2017,C&M-PMS GP Statutory Levy,PRC DELEGATED CO-COMMISSIONING,NHS BARNLSEY CCG GP PRACTICE,16396591,(560.14)
Department of Health,NHS Barnsley CCG,31/03/2017,C&M-PMS Out of Hours Opt Outs,PRC DELEGATED CO-COMMISSIONING,NHS BARNLSEY CCG GP PRACTICE,16396591,(176.75)
Department of Health,NHS Barnsley CCG,31/03/2017,C&M-PMS Voluntary Levy,PRC DELEGATED CO-COMMISSIONING,NHS BARNLSEY CCG GP PRACTICE,16396591,(97.98)
Department of Health,NHS Barnsley CCG,31/03/2017,ME - PMS TPS Added Years Adj EEs,PRC DELEGATED CO-COMMISSIONING,NHS BARNLSEY CCG GP PRACTICE,16396591,(610.96)
Department of Health,NHS Barnsley CCG,31/03/2017,ME-PMS GP Pension EEs-PMS,PRC DELEGATED CO-COMMISSIONING,NHS BARNLSEY CCG GP PRACTICE,16396591,"(13,675.09)"
Department of Health,NHS Barnsley CCG,31/03/2017,ME-PMS GP Pension ERs Adjs - PMS,PRC DELEGATED CO-COMMISSIONING,NHS BARNLSEY CCG GP PRACTICE,16396591,"(14,201.82)"
Department of Health,NHS Barnsley CCG,31/03/2017,C&M-PMS Baseline Adjustment,PRC DELEGATED CO-COMMISSIONING,NHS BARNLSEY CCG GP PRACTICE,16396592,188.08 
Department of Health,NHS Barnsley CCG,31/03/2017,C&M-PMS Contract Value,PRC DELEGATED CO-COMMISSIONING,NHS BARNLSEY CCG GP PRACTICE,16396592,"229,296.23 "
Department of Health,NHS Barnsley CCG,31/03/2017,C&M-PMS DES Extended Hours Access,PRC DELEGATED CO-COMMISSIONING,NHS BARNLSEY CCG GP PRACTICE,16396592,"15,829.86 "
Department of Health,NHS Barnsley CCG,31/03/2017,C&M-PMS Out of Hours Opt Outs,PRC DELEGATED CO-COMMISSIONING,NHS BARNLSEY CCG GP PRACTICE,16396592,"(5,753.11)"
Department of Health,NHS Barnsley CCG,31/03/2017,C&M-PMS PCO Seniority,PRC DELEGATED CO-COMMISSIONING,NHS BARNLSEY CCG GP PRACTICE,16396592,"4,070.10 "
Department of Health,NHS Barnsley CCG,31/03/2017,C&M-PMS Prem Notional Rent,PRC DELEGATED CO-COMMISSIONING,NHS BARNLSEY CCG GP PRACTICE,16396592,"6,333.33 "
Department of Health,NHS Barnsley CCG,31/03/2017,C&M-PMS Prem Rates,PRC DELEGATED CO-COMMISSIONING,NHS BARNLSEY CCG GP PRACTICE,16396592,484.00 
Department of Health,NHS Barnsley CCG,31/03/2017,C&M-PMS QOF Aspiration,PRC DELEGATED CO-COMMISSIONING,NHS BARNLSEY CCG GP PRACTICE,16396592,"13,009.21 "
Department of Health,NHS Barnsley CCG,31/03/2017,C&M-PMS Cost of Drugs -Dispensing,LOCAL ENHANCED SERVICES,NHS BARNLSEY CCG GP PRACTICE,16686101,"(81,517.29)"
Department of Health,NHS Barnsley CCG,31/03/2017,C&M-PMS Prsc Chrgs Cll&Rmttd by GPs,PRC DELEGATED CO-COMMISSIONING,NHS BARNLSEY CCG GP PRACTICE,16686101,"(5,510.40)"
Department of Health,NHS Barnsley CCG,31/03/2017,C&M-PMS Cost of Drugs -Dispensing,LOCAL ENHANCED SERVICES,NHS BARNLSEY CCG GP PRACTICE,16686102,"147,225.07 "
Department of Health,NHS Barnsley CCG,31/03/2017,C&M-PMS Prof fees Dispensing,PRC DELEGATED CO-COMMISSIONING,NHS BARNLSEY CCG GP PRACTICE,16686102,"27,442.98 "
Department of Health,NHS Barnsley CCG,31/03/2017,C&M-PMS Prsc Chrgs Cll&Rmttd by GPs,LOCAL ENHANCED SERVICES,NHS BARNLSEY CCG GP PRACTICE,16686102,"5,510.40 "
Department of Health,NHS Barnsley CCG,31/03/2017,C&M-GMS DES Extended Hours Access,PRC DELEGATED CO-COMMISSIONING,NHS BARNLSEY CCG GP PRACTICE,16659203,"4,671.16 "
Department of Health,NHS Barnsley CCG,31/03/2017,C&M-GMS Global Sum,PRC DELEGATED CO-COMMISSIONING,NHS BARNLSEY CCG GP PRACTICE,16659203,"36,869.04 "
Department of Health,NHS Barnsley CCG,31/03/2017,C&M-GMS PCO Seniority,PRC DELEGATED CO-COMMISSIONING,NHS BARNLSEY CCG GP PRACTICE,16659203,272.13 
Department of Health,NHS Barnsley CCG,31/03/2017,C&M-GMS Prem Notional Rent,PRC DELEGATED CO-COMMISSIONING,NHS BARNLSEY CCG GP PRACTICE,16659203,"1,416.67 "
Department of Health,NHS Barnsley CCG,31/03/2017,C&M-GMS Prem Rates,PRC DELEGATED CO-COMMISSIONING,NHS BARNLSEY CCG GP PRACTICE,16659203,"1,042.62 "
Department of Health,NHS Barnsley CCG,31/03/2017,C&M-GMS QOF Aspiration,PRC DELEGATED CO-COMMISSIONING,NHS BARNLSEY CCG GP PRACTICE,16659203,"3,898.31 "
Department of Health,NHS Barnsley CCG,31/03/2017,C&M-PMS Contract Value,PRC DELEGATED CO-COMMISSIONING,NHS BARNLSEY CCG GP PRACTICE,16396589,"(39,820.66)"
Department of Health,NHS Barnsley CCG,31/03/2017,C&M-PMS GP Statutory Levy,PRC DELEGATED CO-COMMISSIONING,NHS BARNLSEY CCG GP PRACTICE,16396589,(157.65)
Department of Health,NHS Barnsley CCG,31/03/2017,C&M-PMS Out of Hours Opt Outs,PRC DELEGATED CO-COMMISSIONING,NHS BARNLSEY CCG GP PRACTICE,16396589,(31.46)
Department of Health,NHS Barnsley CCG,31/03/2017,C&M-PMS Prem Healthcentre Rent,PRC DELEGATED CO-COMMISSIONING,NHS BARNLSEY CCG GP PRACTICE,16396589,(0.16)
Department of Health,NHS Barnsley CCG,31/03/2017,C&M-PMS Voluntary Levy,PRC DELEGATED CO-COMMISSIONING,NHS BARNLSEY CCG GP PRACTICE,16396589,(27.58)
Department of Health,NHS Barnsley CCG,31/03/2017,ME-PMS GP Pension EEs-PMS,PRC DELEGATED CO-COMMISSIONING,NHS BARNLSEY CCG GP PRACTICE,16396589,"(1,350.92)"
Department of Health,NHS Barnsley CCG,31/03/2017,ME-PMS GP Pension ERs Adjs - PMS,PRC DELEGATED CO-COMMISSIONING,NHS BARNLSEY CCG GP PRACTICE,16396589,"(1,332.28)"
Department of Health,NHS Barnsley CCG,31/03/2017,C&M-PMS Baseline Adjustment,PRC DELEGATED CO-COMMISSIONING,NHS BARNLSEY CCG GP PRACTICE,16396590,"5,074.17 "
Department of Health,NHS Barnsley CCG,31/03/2017,C&M-PMS Contract Value,PRC DELEGATED CO-COMMISSIONING,NHS BARNLSEY CCG GP PRACTICE,16396590,"77,230.97 "
Department of Health,NHS Barnsley CCG,31/03/2017,C&M-PMS DES Extended Hours Access,PRC DELEGATED CO-COMMISSIONING,NHS BARNLSEY CCG GP PRACTICE,16396590,"4,540.06 "
Department of Health,NHS Barnsley CCG,31/03/2017,C&M-PMS Out of Hours Opt Outs,PRC DELEGATED CO-COMMISSIONING,NHS BARNLSEY CCG GP PRACTICE,16396590,"(1,798.41)"
Department of Health,NHS Barnsley CCG,31/03/2017,C&M-PMS PCO Seniority,PRC DELEGATED CO-COMMISSIONING,NHS BARNLSEY CCG GP PRACTICE,16396590,"1,669.69 "
Department of Health,NHS Barnsley CCG,31/03/2017,C&M-PMS Prem Healthcentre Rent,PRC DELEGATED CO-COMMISSIONING,NHS BARNLSEY CCG GP PRACTICE,16396590,"2,989.68 "
Department of Health,NHS Barnsley CCG,31/03/2017,C&M-PMS Prem Notional Rent,PRC DELEGATED CO-COMMISSIONING,NHS BARNLSEY CCG GP PRACTICE,16396590,"7,833.33 "
Department of Health,NHS Barnsley CCG,31/03/2017,C&M-PMS Prem Rates,PRC DELEGATED CO-COMMISSIONING,NHS BARNLSEY CCG GP PRACTICE,16396590,"2,414.36 "
Department of Health,NHS Barnsley CCG,31/03/2017,C&M-PMS QOF Aspiration,PRC DELEGATED CO-COMMISSIONING,NHS BARNLSEY CCG GP PRACTICE,16396590,"2,466.00 "
Department of Health,NHS Barnsley CCG,31/03/2017,C&M-GMS DES Extended Hours Access,PRC DELEGATED CO-COMMISSIONING,NHS BARNLSEY CCG GP PRACTICE,16659207,"12,498.20 "
Department of Health,NHS Barnsley CCG,31/03/2017,C&M-GMS Global Sum,PRC DELEGATED CO-COMMISSIONING,NHS BARNLSEY CCG GP PRACTICE,16659207,"95,631.70 "
Department of Health,NHS Barnsley CCG,31/03/2017,C&M-GMS PCO Seniority,PRC DELEGATED CO-COMMISSIONING,NHS BARNLSEY CCG GP PRACTICE,16659207,"9,369.43 "
Department of Health,NHS Barnsley CCG,31/03/2017,C&M-GMS Prem Notional Rent,PRC DELEGATED CO-COMMISSIONING,NHS BARNLSEY CCG GP PRACTICE,16659207,"6,208.33 "
Department of Health,NHS Barnsley CCG,31/03/2017,C&M-GMS Prem Rates,PRC DELEGATED CO-COMMISSIONING,NHS BARNLSEY CCG GP PRACTICE,16659207,"1,826.48 "
Department of Health,NHS Barnsley CCG,31/03/2017,C&M-GMS QOF Aspiration,PRC DELEGATED CO-COMMISSIONING,NHS BARNLSEY CCG GP PRACTICE,16659207,"10,127.48 "
Department of Health,NHS Barnsley CCG,31/03/2017,C&M-PMS Contract Value,PRC DELEGATED CO-COMMISSIONING,NHS BARNLSEY CCG GP PRACTICE,16396593,"(83,476.48)"
Department of Health,NHS Barnsley CCG,31/03/2017,C&M-PMS GP Statutory Levy,PRC DELEGATED CO-COMMISSIONING,NHS BARNLSEY CCG GP PRACTICE,16396593,(396.19)
Department of Health,NHS Barnsley CCG,31/03/2017,C&M-PMS Out of Hours Opt Outs,PRC DELEGATED CO-COMMISSIONING,NHS BARNLSEY CCG GP PRACTICE,16396593,(71.82)
Department of Health,NHS Barnsley CCG,31/03/2017,C&M-PMS Voluntary Levy,PRC DELEGATED CO-COMMISSIONING,NHS BARNLSEY CCG GP PRACTICE,16396593,(69.30)
Department of Health,NHS Barnsley CCG,31/03/2017,ME - PMS TPS Added Years Adj EEs,PRC DELEGATED CO-COMMISSIONING,NHS BARNLSEY CCG GP PRACTICE,16396593,(585.27)
Department of Health,NHS Barnsley CCG,31/03/2017,ME-PMS GP Pension EEs-PMS,PRC DELEGATED CO-COMMISSIONING,NHS BARNLSEY CCG GP PRACTICE,16396593,"(7,539.34)"
Department of Health,NHS Barnsley CCG,31/03/2017,ME-PMS GP Pension ERs Adjs - PMS,PRC DELEGATED CO-COMMISSIONING,NHS BARNLSEY CCG GP PRACTICE,16396593,"(7,678.24)"
Department of Health,NHS Barnsley CCG,31/03/2017,C&M-PMS Contract Value,PRC DELEGATED CO-COMMISSIONING,NHS BARNLSEY CCG GP PRACTICE,16396594,"174,181.14 "
Department of Health,NHS Barnsley CCG,31/03/2017,C&M-PMS DES Extended Hours Access,PRC DELEGATED CO-COMMISSIONING,NHS BARNLSEY CCG GP PRACTICE,16396594,"11,393.36 "
Department of Health,NHS Barnsley CCG,31/03/2017,C&M-PMS Out of Hours Opt Outs,PRC DELEGATED CO-COMMISSIONING,NHS BARNLSEY CCG GP PRACTICE,16396594,"(4,593.63)"
Department of Health,NHS Barnsley CCG,31/03/2017,C&M-PMS PCO Seniority,PRC DELEGATED CO-COMMISSIONING,NHS BARNLSEY CCG GP PRACTICE,16396594,"4,293.80 "
Department of Health,NHS Barnsley CCG,31/03/2017,C&M-PMS Prem Notional Rent,PRC DELEGATED CO-COMMISSIONING,NHS BARNLSEY CCG GP PRACTICE,16396594,"13,500.00 "
Department of Health,NHS Barnsley CCG,31/03/2017,C&M-PMS Prem Water Rates,PRC DELEGATED CO-COMMISSIONING,NHS BARNLSEY CCG GP PRACTICE,16396594,675.37 
Department of Health,NHS Barnsley CCG,31/03/2017,C&M-PMS QOF Aspiration,PRC DELEGATED CO-COMMISSIONING,NHS BARNLSEY CCG GP PRACTICE,16396594,"9,037.78 "
Department of Health,NHS Barnsley CCG,31/03/2017,C&M-GMS DES Extended Hours Access,PRC DELEGATED CO-COMMISSIONING,NHS BARNLSEY CCG GP PRACTICE,16659205,"10,537.40 "
Department of Health,NHS Barnsley CCG,31/03/2017,C&M-GMS Global Sum,PRC DELEGATED CO-COMMISSIONING,NHS BARNLSEY CCG GP PRACTICE,16659205,"85,541.61 "
Department of Health,NHS Barnsley CCG,31/03/2017,C&M-GMS PCO Seniority,PRC DELEGATED CO-COMMISSIONING,NHS BARNLSEY CCG GP PRACTICE,16659205,"3,880.12 "
Department of Health,NHS Barnsley CCG,31/03/2017,C&M-GMS Prem Healthcentre Rent,PRC DELEGATED CO-COMMISSIONING,NHS BARNLSEY CCG GP PRACTICE,16659205,"31,619.95 "
Department of Health,NHS Barnsley CCG,31/03/2017,C&M-GMS QOF Aspiration,PRC DELEGATED CO-COMMISSIONING,NHS BARNLSEY CCG GP PRACTICE,16659205,"9,007.62 "
Department of Health,NHS Barnsley CCG,31/03/2017,C&M-GMS DES Extended Hours Access,PRC DELEGATED CO-COMMISSIONING,NHS BARNLSEY CCG GP PRACTICE,16659209,"9,454.40 "
Department of Health,NHS Barnsley CCG,31/03/2017,C&M-GMS Global Sum,PRC DELEGATED CO-COMMISSIONING,NHS BARNLSEY CCG GP PRACTICE,16659209,"71,076.84 "
Department of Health,NHS Barnsley CCG,31/03/2017,C&M-GMS PCO Seniority,PRC DELEGATED CO-COMMISSIONING,NHS BARNLSEY CCG GP PRACTICE,16659209,"1,764.58 "
Department of Health,NHS Barnsley CCG,31/03/2017,C&M-GMS Prem Rates,PRC DELEGATED CO-COMMISSIONING,NHS BARNLSEY CCG GP PRACTICE,16659209,"2,534.70 "
Department of Health,NHS Barnsley CCG,31/03/2017,C&M-GMS QOF Aspiration,PRC DELEGATED CO-COMMISSIONING,NHS BARNLSEY CCG GP PRACTICE,16659209,"9,545.99 "
Department of Health,NHS Barnsley CCG,31/03/2017,C&M-PMS Contract Value,PRC DELEGATED CO-COMMISSIONING,NHS BARNLSEY CCG GP PRACTICE,16396595,"(74,624.74)"
Department of Health,NHS Barnsley CCG,31/03/2017,C&M-PMS GP Statutory Levy,PRC DELEGATED CO-COMMISSIONING,NHS BARNLSEY CCG GP PRACTICE,16396595,(398.69)
Department of Health,NHS Barnsley CCG,31/03/2017,C&M-PMS Out of Hours Opt Outs,PRC DELEGATED CO-COMMISSIONING,NHS BARNLSEY CCG GP PRACTICE,16396595,(266.88)
Department of Health,NHS Barnsley CCG,31/03/2017,C&M-PMS Voluntary Levy,PRC DELEGATED CO-COMMISSIONING,NHS BARNLSEY CCG GP PRACTICE,16396595,(69.74)
Department of Health,NHS Barnsley CCG,31/03/2017,ME - PMS TPS Added Years Adj EEs,PRC DELEGATED CO-COMMISSIONING,NHS BARNLSEY CCG GP PRACTICE,16396595,(266.67)
Department of Health,NHS Barnsley CCG,31/03/2017,ME-PMS GP Pension EEs-PMS,PRC DELEGATED CO-COMMISSIONING,NHS BARNLSEY CCG GP PRACTICE,16396595,"(7,526.25)"
Department of Health,NHS Barnsley CCG,31/03/2017,ME-PMS GP Pension ERs Adjs - PMS,PRC DELEGATED CO-COMMISSIONING,NHS BARNLSEY CCG GP PRACTICE,16396595,"(8,186.76)"
Department of Health,NHS Barnsley CCG,31/03/2017,C&M-PMS Contract Value,PRC DELEGATED CO-COMMISSIONING,NHS BARNLSEY CCG GP PRACTICE,16396596,"161,630.23 "
Department of Health,NHS Barnsley CCG,31/03/2017,C&M-PMS DES Extended Hours Access,PRC DELEGATED CO-COMMISSIONING,NHS BARNLSEY CCG GP PRACTICE,16396596,"11,109.30 "
Department of Health,NHS Barnsley CCG,31/03/2017,C&M-PMS DES UNPLANNED ADMISSIONS,PRC DELEGATED CO-COMMISSIONING,NHS BARNLSEY CCG GP PRACTICE,16396596,"9,005.92 "
Department of Health,NHS Barnsley CCG,31/03/2017,C&M-PMS Out of Hours Opt Outs,PRC DELEGATED CO-COMMISSIONING,NHS BARNLSEY CCG GP PRACTICE,16396596,"(4,208.63)"
Department of Health,NHS Barnsley CCG,31/03/2017,C&M-PMS PCO Seniority,PRC DELEGATED CO-COMMISSIONING,NHS BARNLSEY CCG GP PRACTICE,16396596,"4,641.90 "
Department of Health,NHS Barnsley CCG,31/03/2017,C&M-PMS Prem Notional Rent,PRC DELEGATED CO-COMMISSIONING,NHS BARNLSEY CCG GP PRACTICE,16396596,"8,125.00 "
Department of Health,NHS Barnsley CCG,31/03/2017,C&M-PMS Prem Rates,PRC DELEGATED CO-COMMISSIONING,NHS BARNLSEY CCG GP PRACTICE,16396596,838.74 
Department of Health,NHS Barnsley CCG,31/03/2017,C&M-PMS QOF Aspiration,PRC DELEGATED CO-COMMISSIONING,NHS BARNLSEY CCG GP PRACTICE,16396596,"9,498.69 "
Department of Health,NHS Barnsley CCG,31/03/2017,C&M-PMS Contract Value,PRC DELEGATED CO-COMMISSIONING,NHS BARNLSEY CCG GP PRACTICE,16396597,"(78,517.17)"
Department of Health,NHS Barnsley CCG,31/03/2017,C&M-PMS GP Statutory Levy,PRC DELEGATED CO-COMMISSIONING,NHS BARNLSEY CCG GP PRACTICE,16396597,(376.93)
Department of Health,NHS Barnsley CCG,31/03/2017,C&M-PMS Out of Hours Opt Outs,PRC DELEGATED CO-COMMISSIONING,NHS BARNLSEY CCG GP PRACTICE,16396597,(128.96)
Department of Health,NHS Barnsley CCG,31/03/2017,C&M-PMS Voluntary Levy,PRC DELEGATED CO-COMMISSIONING,NHS BARNLSEY CCG GP PRACTICE,16396597,(65.93)
Department of Health,NHS Barnsley CCG,31/03/2017,ME - PMS GP Prior Year ERs,PRC DELEGATED CO-COMMISSIONING,NHS BARNLSEY CCG GP PRACTICE,16396597,"(3,259.20)"
Department of Health,NHS Barnsley CCG,31/03/2017,ME-PMS GP Pension EEs-PMS,PRC DELEGATED CO-COMMISSIONING,NHS BARNLSEY CCG GP PRACTICE,16396597,"(6,626.25)"
Department of Health,NHS Barnsley CCG,31/03/2017,ME-PMS GP Pension ERs Adjs - PMS,PRC DELEGATED CO-COMMISSIONING,NHS BARNLSEY CCG GP PRACTICE,16396597,"(7,018.92)"
Department of Health,NHS Barnsley CCG,31/03/2017,ME-PMS GP Prior Year EEs,PRC DELEGATED CO-COMMISSIONING,NHS BARNLSEY CCG GP PRACTICE,16396597,"(2,976.89)"
Department of Health,NHS Barnsley CCG,31/03/2017,C&M-PMS Contract Value,PRC DELEGATED CO-COMMISSIONING,NHS BARNLSEY CCG GP PRACTICE,16396598,"166,960.69 "
Department of Health,NHS Barnsley CCG,31/03/2017,C&M-PMS DES Extended Hours Access,PRC DELEGATED CO-COMMISSIONING,NHS BARNLSEY CCG GP PRACTICE,16396598,"10,515.56 "
Department of Health,NHS Barnsley CCG,31/03/2017,C&M-PMS Out of Hours Opt Outs,PRC DELEGATED CO-COMMISSIONING,NHS BARNLSEY CCG GP PRACTICE,16396598,"(4,420.30)"
Department of Health,NHS Barnsley CCG,31/03/2017,C&M-PMS PCO Seniority,PRC DELEGATED CO-COMMISSIONING,NHS BARNLSEY CCG GP PRACTICE,16396598,"1,637.42 "
Department of Health,NHS Barnsley CCG,31/03/2017,C&M-PMS Prem Actual Rent,PRC DELEGATED CO-COMMISSIONING,NHS BARNLSEY CCG GP PRACTICE,16396598,"12,708.33 "
Department of Health,NHS Barnsley CCG,31/03/2017,C&M-PMS Prem Rates,PRC DELEGATED CO-COMMISSIONING,NHS BARNLSEY CCG GP PRACTICE,16396598,"2,153.71 "
Department of Health,NHS Barnsley CCG,31/03/2017,C&M-PMS QOF Aspiration,PRC DELEGATED CO-COMMISSIONING,NHS BARNLSEY CCG GP PRACTICE,16396598,"9,731.41 "
Department of Health,NHS Barnsley CCG,31/03/2017,C&M-PMS Contract Value,PRC DELEGATED CO-COMMISSIONING,NHS BARNLSEY CCG GP PRACTICE,16396599,"(67,727.16)"
Department of Health,NHS Barnsley CCG,31/03/2017,C&M-PMS GP Statutory Levy,PRC DELEGATED CO-COMMISSIONING,NHS BARNLSEY CCG GP PRACTICE,16396599,(360.86)
Department of Health,NHS Barnsley CCG,31/03/2017,C&M-PMS Out of Hours Opt Outs,PRC DELEGATED CO-COMMISSIONING,NHS BARNLSEY CCG GP PRACTICE,16396599,(164.00)
Department of Health,NHS Barnsley CCG,31/03/2017,ME-PMS GP Pension EEs-PMS,PRC DELEGATED CO-COMMISSIONING,NHS BARNLSEY CCG GP PRACTICE,16396599,"(3,350.26)"
Department of Health,NHS Barnsley CCG,31/03/2017,ME-PMS GP Pension ERs Adjs - PMS,PRC DELEGATED CO-COMMISSIONING,NHS BARNLSEY CCG GP PRACTICE,16396599,"(3,542.24)"
Department of Health,NHS Barnsley CCG,31/03/2017,C&M-PMS Contract Value,PRC DELEGATED CO-COMMISSIONING,NHS BARNLSEY CCG GP PRACTICE,16396600,"145,176.46 "
Department of Health,NHS Barnsley CCG,31/03/2017,C&M-PMS DES Extended Hours Access,PRC DELEGATED CO-COMMISSIONING,NHS BARNLSEY CCG GP PRACTICE,16396600,"9,964.56 "
Department of Health,NHS Barnsley CCG,31/03/2017,C&M-PMS Out of Hours Opt Outs,PRC DELEGATED CO-COMMISSIONING,NHS BARNLSEY CCG GP PRACTICE,16396600,"(3,820.17)"
Department of Health,NHS Barnsley CCG,31/03/2017,C&M-PMS PCO Seniority,PRC DELEGATED CO-COMMISSIONING,NHS BARNLSEY CCG GP PRACTICE,16396600,"1,716.37 "
Department of Health,NHS Barnsley CCG,31/03/2017,C&M-PMS Prem Actual Rent,PRC DELEGATED CO-COMMISSIONING,NHS BARNLSEY CCG GP PRACTICE,16396600,"8,566.67 "
Department of Health,NHS Barnsley CCG,31/03/2017,C&M-PMS QOF Aspiration,PRC DELEGATED CO-COMMISSIONING,NHS BARNLSEY CCG GP PRACTICE,16396600,"7,252.24 "
Department of Health,NHS Barnsley CCG,31/03/2017,C&M-GMS DES Extended Hours Access,PRC DELEGATED CO-COMMISSIONING,NHS BARNLSEY CCG GP PRACTICE,16659211,"6,309.90 "
Department of Health,NHS Barnsley CCG,31/03/2017,C&M-GMS Global Sum,PRC DELEGATED CO-COMMISSIONING,NHS BARNLSEY CCG GP PRACTICE,16659211,"51,824.24 "
Department of Health,NHS Barnsley CCG,31/03/2017,C&M-GMS PCO Seniority,PRC DELEGATED CO-COMMISSIONING,NHS BARNLSEY CCG GP PRACTICE,16659211,"3,444.07 "
Department of Health,NHS Barnsley CCG,31/03/2017,C&M-GMS Prem Healthcentre Rent,PRC DELEGATED CO-COMMISSIONING,NHS BARNLSEY CCG GP PRACTICE,16659211,"20,522.19 "
Department of Health,NHS Barnsley CCG,31/03/2017,C&M-GMS QOF Aspiration,PRC DELEGATED CO-COMMISSIONING,NHS BARNLSEY CCG GP PRACTICE,16659211,"5,719.94 "
Department of Health,NHS Barnsley CCG,31/03/2017,C&M-PMS Contract Value,PRC DELEGATED CO-COMMISSIONING,NHS BARNLSEY CCG GP PRACTICE,16396601,"(85,374.95)"
Department of Health,NHS Barnsley CCG,31/03/2017,C&M-PMS GP Statutory Levy,PRC DELEGATED CO-COMMISSIONING,NHS BARNLSEY CCG GP PRACTICE,16396601,(437.46)
Department of Health,NHS Barnsley CCG,31/03/2017,C&M-PMS Out of Hours Opt Outs,PRC DELEGATED CO-COMMISSIONING,NHS BARNLSEY CCG GP PRACTICE,16396601,(94.51)
Department of Health,NHS Barnsley CCG,31/03/2017,C&M-PMS Prem Rates,PRC DELEGATED CO-COMMISSIONING,NHS BARNLSEY CCG GP PRACTICE,16396601,"(2,348.33)"
Department of Health,NHS Barnsley CCG,31/03/2017,C&M-PMS Voluntary Levy,PRC DELEGATED CO-COMMISSIONING,NHS BARNLSEY CCG GP PRACTICE,16396601,(76.52)
Department of Health,NHS Barnsley CCG,31/03/2017,ME-PMS GP Pension EEs-PMS,PRC DELEGATED CO-COMMISSIONING,NHS BARNLSEY CCG GP PRACTICE,16396601,"(6,753.36)"
Department of Health,NHS Barnsley CCG,31/03/2017,ME-PMS GP Pension ERs Adjs - PMS,PRC DELEGATED CO-COMMISSIONING,NHS BARNLSEY CCG GP PRACTICE,16396601,"(7,565.93)"
Department of Health,NHS Barnsley CCG,31/03/2017,C&M-PMS Contract Value,PRC DELEGATED CO-COMMISSIONING,NHS BARNLSEY CCG GP PRACTICE,16396602,"179,313.57 "
Department of Health,NHS Barnsley CCG,31/03/2017,C&M-PMS DES Extended Hours Access,PRC DELEGATED CO-COMMISSIONING,NHS BARNLSEY CCG GP PRACTICE,16396602,"12,576.10 "
Department of Health,NHS Barnsley CCG,31/03/2017,C&M-PMS Out of Hours Opt Outs,PRC DELEGATED CO-COMMISSIONING,NHS BARNLSEY CCG GP PRACTICE,16396602,"(4,737.16)"
Department of Health,NHS Barnsley CCG,31/03/2017,C&M-PMS PCO Seniority,PRC DELEGATED CO-COMMISSIONING,NHS BARNLSEY CCG GP PRACTICE,16396602,"5,919.79 "
Department of Health,NHS Barnsley CCG,31/03/2017,C&M-PMS Prem Rates,PRC DELEGATED CO-COMMISSIONING,NHS BARNLSEY CCG GP PRACTICE,16396602,"2,348.33 "
Department of Health,NHS Barnsley CCG,31/03/2017,C&M-PMS QOF Aspiration,PRC DELEGATED CO-COMMISSIONING,NHS BARNLSEY CCG GP PRACTICE,16396602,"11,102.10 "
Department of Health,NHS Barnsley CCG,31/03/2017,C&M-GMS DES Learn Dsblty Hlth Chk,PRC DELEGATED CO-COMMISSIONING,NHS BARNLSEY CCG GP PRACTICE,16659215,464.00 
Department of Health,NHS Barnsley CCG,31/03/2017,C&M-GMS Global Sum,PRC DELEGATED CO-COMMISSIONING,NHS BARNLSEY CCG GP PRACTICE,16659215,"42,328.22 "
Department of Health,NHS Barnsley CCG,31/03/2017,C&M-GMS PCO Seniority,PRC DELEGATED CO-COMMISSIONING,NHS BARNLSEY CCG GP PRACTICE,16659215,"3,676.70 "
Department of Health,NHS Barnsley CCG,31/03/2017,C&M-GMS Prem Notional Rent,PRC DELEGATED CO-COMMISSIONING,NHS BARNLSEY CCG GP PRACTICE,16659215,"2,541.67 "
Department of Health,NHS Barnsley CCG,31/03/2017,C&M-GMS Prem Rates,PRC DELEGATED CO-COMMISSIONING,NHS BARNLSEY CCG GP PRACTICE,16659215,973.29 
Department of Health,NHS Barnsley CCG,31/03/2017,C&M-GMS QOF Aspiration,PRC DELEGATED CO-COMMISSIONING,NHS BARNLSEY CCG GP PRACTICE,16659215,"3,306.22 "
Department of Health,NHS Barnsley CCG,31/03/2017,Cont Care-Learning Disab(65+),CHC ADULT FULLY FUNDED,EMERALD CARE SERVICES LTD,16371779,"40,249.25 "
Department of Health,NHS Barnsley CCG,31/03/2017,Income tax <1Yr,BALANCE SHEET,HMRC,16425258,"57,167.97 "
Department of Health,NHS Barnsley CCG,31/03/2017,Income tax <1Yr-Student Loans,BALANCE SHEET,HMRC,16425258,"1,846.00 "
Department of Health,NHS Barnsley CCG,31/03/2017,National Insurance < 1 yr-NI- ERS,BALANCE SHEET,HMRC,16425258,"38,973.24 "
Department of Health,NHS Barnsley CCG,31/03/2017,National Insurance < 1 yr-NI-EES,BALANCE SHEET,HMRC,16425258,"27,726.45 "
Department of Health,NHS Barnsley CCG,31/03/2017,Statutory Mat Pay < 1 yr,BALANCE SHEET,HMRC,16425258,"(3,725.23)"
Department of Health,NHS Barnsley CCG,31/03/2017,C&M-GMS DES Extended Hours Access,PRC DELEGATED CO-COMMISSIONING,NHS BARNLSEY CCG GP PRACTICE,16659217,"10,948.76 "
Department of Health,NHS Barnsley CCG,31/03/2017,C&M-GMS Global Sum,PRC DELEGATED CO-COMMISSIONING,NHS BARNLSEY CCG GP PRACTICE,16659217,"77,698.82 "
Department of Health,NHS Barnsley CCG,31/03/2017,C&M-GMS PCO Seniority,PRC DELEGATED CO-COMMISSIONING,NHS BARNLSEY CCG GP PRACTICE,16659217,"5,704.68 "
Department of Health,NHS Barnsley CCG,31/03/2017,C&M-GMS Prem Healthcentre Rent,PRC DELEGATED CO-COMMISSIONING,NHS BARNLSEY CCG GP PRACTICE,16659217,"22,577.78 "
Department of Health,NHS Barnsley CCG,31/03/2017,C&M-GMS Prem Notional Rent,PRC DELEGATED CO-COMMISSIONING,NHS BARNLSEY CCG GP PRACTICE,16659217,"1,312.50 "
Department of Health,NHS Barnsley CCG,31/03/2017,C&M-GMS Prem Rates,PRC DELEGATED CO-COMMISSIONING,NHS BARNLSEY CCG GP PRACTICE,16659217,653.40 
Department of Health,NHS Barnsley CCG,31/03/2017,C&M-GMS QOF Aspiration,PRC DELEGATED CO-COMMISSIONING,NHS BARNLSEY CCG GP PRACTICE,16659217,"8,766.44 "
Department of Health,NHS Barnsley CCG,31/03/2017,C&M-PMS Contract Value,PRC DELEGATED CO-COMMISSIONING,NHS BARNLSEY CCG GP PRACTICE,16396603,"(44,156.29)"
Department of Health,NHS Barnsley CCG,31/03/2017,C&M-PMS GP Statutory Levy,PRC DELEGATED CO-COMMISSIONING,NHS BARNLSEY CCG GP PRACTICE,16396603,(212.48)
Department of Health,NHS Barnsley CCG,31/03/2017,C&M-PMS Out of Hours Opt Outs,PRC DELEGATED CO-COMMISSIONING,NHS BARNLSEY CCG GP PRACTICE,16396603,(68.61)
Department of Health,NHS Barnsley CCG,31/03/2017,C&M-PMS Voluntary Levy,PRC DELEGATED CO-COMMISSIONING,NHS BARNLSEY CCG GP PRACTICE,16396603,(37.17)
Department of Health,NHS Barnsley CCG,31/03/2017,ME-PMS GP Pension EEs-PMS,PRC DELEGATED CO-COMMISSIONING,NHS BARNLSEY CCG GP PRACTICE,16396603,(846.79)
Department of Health,NHS Barnsley CCG,31/03/2017,ME-PMS GP Pension ERs Adjs - PMS,PRC DELEGATED CO-COMMISSIONING,NHS BARNLSEY CCG GP PRACTICE,16396603,(896.97)
Department of Health,NHS Barnsley CCG,31/03/2017,C&M-PMS Baseline Adjustment,PRC DELEGATED CO-COMMISSIONING,NHS BARNLSEY CCG GP PRACTICE,16396604,"3,001.58 "
Department of Health,NHS Barnsley CCG,31/03/2017,C&M-PMS Contract Value,PRC DELEGATED CO-COMMISSIONING,NHS BARNLSEY CCG GP PRACTICE,16396604,"89,497.81 "
Department of Health,NHS Barnsley CCG,31/03/2017,C&M-PMS Out of Hours Opt Outs,PRC DELEGATED CO-COMMISSIONING,NHS BARNLSEY CCG GP PRACTICE,16396604,"(2,155.39)"
Department of Health,NHS Barnsley CCG,31/03/2017,C&M-PMS PCO Seniority,PRC DELEGATED CO-COMMISSIONING,NHS BARNLSEY CCG GP PRACTICE,16396604,"1,474.71 "
Department of Health,NHS Barnsley CCG,31/03/2017,C&M-PMS Prem Healthcentre Rent,PRC DELEGATED CO-COMMISSIONING,NHS BARNLSEY CCG GP PRACTICE,16396604,"5,694.47 "
Department of Health,NHS Barnsley CCG,31/03/2017,C&M-PMS Prem Notional Rent,PRC DELEGATED CO-COMMISSIONING,NHS BARNLSEY CCG GP PRACTICE,16396604,"3,583.33 "
Department of Health,NHS Barnsley CCG,31/03/2017,C&M-PMS QOF Aspiration,PRC DELEGATED CO-COMMISSIONING,NHS BARNLSEY CCG GP PRACTICE,16396604,"4,198.69 "
Department of Health,NHS Barnsley CCG,31/03/2017,External Data Contracts,COMMISSIONING SCHEMES,KIER BUSINESS SERVICES LTD,16371898,"22,440.00 "
Department of Health,NHS Barnsley CCG,31/03/2017,External Data Contracts,CORPORATE COSTS & SERVICES,KIER BUSINESS SERVICES LTD,16371898,"11,953.00 "
Department of Health,NHS Barnsley CCG,31/03/2017,Telecoms-Data lines,PRIMARY CARE IT,KIER BUSINESS SERVICES LTD,16371898,"51,354.00 "
Department of Health,NHS Barnsley CCG,31/03/2017,C&M-PMS Contract Value,PRC DELEGATED CO-COMMISSIONING,NHS BARNLSEY CCG GP PRACTICE,16400639,"(22,994.75)"
Department of Health,NHS Barnsley CCG,31/03/2017,C&M-PMS Out of Hours Opt Outs,PRC DELEGATED CO-COMMISSIONING,NHS BARNLSEY CCG GP PRACTICE,16400639,(44.77)
Department of Health,NHS Barnsley CCG,31/03/2017,ME - PMS TPS Added Years Adj EEs,PRC DELEGATED CO-COMMISSIONING,NHS BARNLSEY CCG GP PRACTICE,16400639,(80.00)
Department of Health,NHS Barnsley CCG,31/03/2017,ME-PMS GP Pension EEs-PMS,PRC DELEGATED CO-COMMISSIONING,NHS BARNLSEY CCG GP PRACTICE,16400639,(778.77)
Department of Health,NHS Barnsley CCG,31/03/2017,ME-PMS GP Pension ERs Adjs - PMS,PRC DELEGATED CO-COMMISSIONING,NHS BARNLSEY CCG GP PRACTICE,16400639,(975.57)
Department of Health,NHS Barnsley CCG,31/03/2017,ME-PMS GP Prudential,PRC DELEGATED CO-COMMISSIONING,NHS BARNLSEY CCG GP PRACTICE,16400639,(640.00)
Department of Health,NHS Barnsley CCG,31/03/2017,C&M-PMS Baseline Adjustment,PRC DELEGATED CO-COMMISSIONING,NHS BARNLSEY CCG GP PRACTICE,16400640,"1,386.00 "
Department of Health,NHS Barnsley CCG,31/03/2017,C&M-PMS Contract Value,PRC DELEGATED CO-COMMISSIONING,NHS BARNLSEY CCG GP PRACTICE,16400640,"47,304.28 "
Department of Health,NHS Barnsley CCG,31/03/2017,C&M-PMS DES Extended Hours Access,PRC DELEGATED CO-COMMISSIONING,NHS BARNLSEY CCG GP PRACTICE,16400640,"3,421.90 "
Department of Health,NHS Barnsley CCG,31/03/2017,C&M-PMS DES Learn Dsblty Hlth Chk,PRC DELEGATED CO-COMMISSIONING,NHS BARNLSEY CCG GP PRACTICE,16400640,116.00 
Department of Health,NHS Barnsley CCG,31/03/2017,C&M-PMS DES Minor Surgery,PRC DELEGATED CO-COMMISSIONING,NHS BARNLSEY CCG GP PRACTICE,16400640,298.34 
Department of Health,NHS Barnsley CCG,31/03/2017,C&M-PMS Out of Hours Opt Outs,PRC DELEGATED CO-COMMISSIONING,NHS BARNLSEY CCG GP PRACTICE,16400640,"(1,151.58)"
Department of Health,NHS Barnsley CCG,31/03/2017,C&M-PMS PCO Seniority,PRC DELEGATED CO-COMMISSIONING,NHS BARNLSEY CCG GP PRACTICE,16400640,"2,262.30 "
Department of Health,NHS Barnsley CCG,31/03/2017,C&M-PMS Prem Notional Rent,PRC DELEGATED CO-COMMISSIONING,NHS BARNLSEY CCG GP PRACTICE,16400640,"4,145.83 "
Department of Health,NHS Barnsley CCG,31/03/2017,C&M-PMS QOF Aspiration,PRC DELEGATED CO-COMMISSIONING,NHS BARNLSEY CCG GP PRACTICE,16400640,"1,890.25 "
Department of Health,NHS Barnsley CCG,31/03/2017,C&M-PMS Cost of Drugs -Dispensing,LOCAL ENHANCED SERVICES,NHS BARNLSEY CCG GP PRACTICE,16690076,"30,515.10 "
Department of Health,NHS Barnsley CCG,31/03/2017,C&M-PMS Prof fees Dispensing,PRC DELEGATED CO-COMMISSIONING,NHS BARNLSEY CCG GP PRACTICE,16690076,"4,604.61 "
Department of Health,NHS Barnsley CCG,31/03/2017,C&M-PMS Prsc Chrgs Cll&Rmttd by GPs,LOCAL ENHANCED SERVICES,NHS BARNLSEY CCG GP PRACTICE,16690076,"1,318.80 "
Department of Health,NHS Barnsley CCG,31/03/2017,C&M-APMS Contract Value,PRC DELEGATED CO-COMMISSIONING,NHS BARNLSEY CCG GP PRACTICE,16396608,"17,497.24 "
Department of Health,NHS Barnsley CCG,31/03/2017,C&M-APMS OOH Opt Outs,PRC DELEGATED CO-COMMISSIONING,NHS BARNLSEY CCG GP PRACTICE,16396608,(827.83)
Department of Health,NHS Barnsley CCG,31/03/2017,C&M-APMS Prem Actual Rent,PRC DELEGATED CO-COMMISSIONING,NHS BARNLSEY CCG GP PRACTICE,16396608,"4,744.50 "
Department of Health,NHS Barnsley CCG,31/03/2017,C&M-PMS Contract Value,PRC DELEGATED CO-COMMISSIONING,NHS BARNLSEY CCG GP PRACTICE,16396608,"15,738.82 "
Department of Health,NHS Barnsley CCG,31/03/2017,C&M-PMS Prem Healthcentre Rent,PRC DELEGATED CO-COMMISSIONING,NHS BARNLSEY CCG GP PRACTICE,16396608,12.41 
Department of Health,NHS Barnsley CCG,31/03/2017,C&M-PMS QOF Aspiration,PRC DELEGATED CO-COMMISSIONING,NHS BARNLSEY CCG GP PRACTICE,16396608,"1,422.76 "
Department of Health,NHS Barnsley CCG,31/03/2017,Hcare Srv Rec NHS Trust-CQUIN,ACUTE COMMISSIONING,LEEDS TEACHING HOSPITALS NHS TRUST,16298683,"1,583.54 "
Department of Health,NHS Barnsley CCG,31/03/2017,Hcare Srv Rec NHS Trust-Contract Baseline,ACUTE COMMISSIONING,LEEDS TEACHING HOSPITALS NHS TRUST,16298683,"73,789.75 "
Department of Health,NHS Barnsley CCG,31/03/2017,Computer Software/License,PROGRAMME PROJECTS,MAP OF MEDICINE LTD,16534880,"65,838.70 "
Department of Health,NHS Barnsley CCG,31/03/2017,Hcare Srv Rec NHS Trust-CQUIN,ACUTE COMMISSIONING,MID YORKSHIRE HOSPITALS NHS TRUST,16299039,"2,195.00 "
Department of Health,NHS Barnsley CCG,31/03/2017,Hcare Srv Rec NHS Trust-Contract Baseline,ACUTE COMMISSIONING,MID YORKSHIRE HOSPITALS NHS TRUST,16299039,"205,233.00 "
Department of Health,NHS Barnsley CCG,31/03/2017,Hcare Srv Rec NHS Trust-CQUIN,ACUTE COMMISSIONING,MID YORKSHIRE HOSPITALS NHS TRUST,16456712,"26,340.00 "
Department of Health,NHS Barnsley CCG,31/03/2017,Hcare Srv Rec NHS Trust-CQUIN,ACUTE COMMISSIONING,MID YORKSHIRE HOSPITALS NHS TRUST,16589652,"5,484.00 "
Department of Health,NHS Barnsley CCG,31/03/2017,Hcare Srv Rec NHS Trust-Contract Baseline,ACUTE COMMISSIONING,MID YORKSHIRE HOSPITALS NHS TRUST,16589652,"215,022.00 "
Department of Health,NHS Barnsley CCG,31/03/2017,Other Gen Supplies & Srv,PROGRAMME PROJECTS,NHS ROTHERHAM CCG,16560771,"37,450.00 "
Department of Health,NHS Barnsley CCG,31/03/2017,Clinical&Medical-Commercial Sector,ACUTE COMMISSIONING,ONEHEALTH GROUP,16298697,"102,782.68 "
Department of Health,NHS Barnsley CCG,31/03/2017,Clinical&Medical-Commercial Sector,ACUTE COMMISSIONING,ONEHEALTH GROUP,16534906,"102,782.68 "
Department of Health,NHS Barnsley CCG,31/03/2017,Clinical&Medical-Commercial Sector,ACUTE COMMISSIONING,ONEHEALTH GROUP,16560741,"86,586.71 "
Department of Health,NHS Barnsley CCG,31/03/2017,Clinical&Medical-Commercial Sector,ACUTE COMMISSIONING,PAIN MANAGEMENT SOLUTIONS LTD,16534886,"29,134.67 "
Department of Health,NHS Barnsley CCG,31/03/2017,Hcare Srv Rec Fdtn Trust-CQUIN,MENTAL HEALTH CONTRACTS,ROTHERHAM DONCASTER & SOUTH HUMBER MENTAL HEALTH NHS FOUNDATION TRUST,16456699,674.86 
Department of Health,NHS Barnsley CCG,31/03/2017,Hcare Srv Rec Fdtn Trust-Contract Baseline,MENTAL HEALTH CONTRACTS,ROTHERHAM DONCASTER & SOUTH HUMBER MENTAL HEALTH NHS FOUNDATION TRUST,16456699,"49,161.69 "
Department of Health,NHS Barnsley CCG,31/03/2017,Hcare Srv Rec Fdtn Trust-CQUIN,ACUTE COMMISSIONING,ROTHERHAM NHS FOUNDATION TRUST,16298836,"10,072.00 "
Department of Health,NHS Barnsley CCG,31/03/2017,Hcare Srv Rec Fdtn Trust-Contract Baseline,ACUTE COMMISSIONING,ROTHERHAM NHS FOUNDATION TRUST,16298836,"956,207.00 "
Department of Health,NHS Barnsley CCG,31/03/2017,Hcare Srv Rec Fdtn Trust-CQUIN,COMMUNITY SERVICES,ROTHERHAM NHS FOUNDATION TRUST,16298849,"1,019.00 "
Department of Health,NHS Barnsley CCG,31/03/2017,Hcare Srv Rec Fdtn Trust-Contract Baseline,COMMUNITY SERVICES,ROTHERHAM NHS FOUNDATION TRUST,16298849,"40,746.00 "
Department of Health,NHS Barnsley CCG,31/03/2017,Hcare Srv Rec Fdtn Trust-CQUIN,ACUTE COMMISSIONING,ROTHERHAM NHS FOUNDATION TRUST,16298859,"94,734.00 "
Department of Health,NHS Barnsley CCG,31/03/2017,Hcare Srv Rec Fdtn Trust-Contract Baseline,ACUTE COMMISSIONING,ROTHERHAM NHS FOUNDATION TRUST,16298859,"757,430.00 "
Department of Health,NHS Barnsley CCG,31/03/2017,Hcare Srv Rec Fdtn Trust-Contract Baseline,OUT OF HOURS,ROTHERHAM NHS FOUNDATION TRUST,16299124,"161,281.08 "
Department of Health,NHS Barnsley CCG,31/03/2017,Hcare Srv Rec Fdtn Trust-Contract Baseline,OUT OF HOURS,ROTHERHAM NHS FOUNDATION TRUST,16456703,"161,281.08 "
Department of Health,NHS Barnsley CCG,31/03/2017,C&M-PMS Contract Value,PRC DELEGATED CO-COMMISSIONING,NHS BARNLSEY CCG GP PRACTICE,16400642,"(32,412.67)"
Department of Health,NHS Barnsley CCG,31/03/2017,C&M-PMS GP Statutory Levy,PRC DELEGATED CO-COMMISSIONING,NHS BARNLSEY CCG GP PRACTICE,16400642,(167.75)
Department of Health,NHS Barnsley CCG,31/03/2017,C&M-PMS Out of Hours Opt Outs,PRC DELEGATED CO-COMMISSIONING,NHS BARNLSEY CCG GP PRACTICE,16400642,(450.22)
Department of Health,NHS Barnsley CCG,31/03/2017,C&M-PMS Voluntary Levy,PRC DELEGATED CO-COMMISSIONING,NHS BARNLSEY CCG GP PRACTICE,16400642,(29.34)
Department of Health,NHS Barnsley CCG,31/03/2017,ME-PMS GP Pension EEs-PMS,PRC DELEGATED CO-COMMISSIONING,NHS BARNLSEY CCG GP PRACTICE,16400642,(593.75)
Department of Health,NHS Barnsley CCG,31/03/2017,ME-PMS GP Pension ERs Adjs - PMS,PRC DELEGATED CO-COMMISSIONING,NHS BARNLSEY CCG GP PRACTICE,16400642,(679.25)
Department of Health,NHS Barnsley CCG,31/03/2017,C&M-PMS Baseline Adjustment,PRC DELEGATED CO-COMMISSIONING,NHS BARNLSEY CCG GP PRACTICE,16400643,407.50 
Department of Health,NHS Barnsley CCG,31/03/2017,C&M-PMS Contract Value,PRC DELEGATED CO-COMMISSIONING,NHS BARNLSEY CCG GP PRACTICE,16400643,"75,863.77 "
Department of Health,NHS Barnsley CCG,31/03/2017,C&M-PMS Out of Hours Opt Outs,PRC DELEGATED CO-COMMISSIONING,NHS BARNLSEY CCG GP PRACTICE,16400643,"(1,701.08)"
Department of Health,NHS Barnsley CCG,31/03/2017,C&M-PMS PCO Seniority,PRC DELEGATED CO-COMMISSIONING,NHS BARNLSEY CCG GP PRACTICE,16400643,"3,150.29 "
Department of Health,NHS Barnsley CCG,31/03/2017,C&M-PMS Prem Notional Rent,PRC DELEGATED CO-COMMISSIONING,NHS BARNLSEY CCG GP PRACTICE,16400643,"3,041.67 "
Department of Health,NHS Barnsley CCG,31/03/2017,C&M-PMS QOF Aspiration,PRC DELEGATED CO-COMMISSIONING,NHS BARNLSEY CCG GP PRACTICE,16400643,"2,458.56 "
Department of Health,NHS Barnsley CCG,31/03/2017,C&M-GMS DES Extended Hours Access,PRC DELEGATED CO-COMMISSIONING,NHS BARNLSEY CCG GP PRACTICE,16664594,"7,705.46 "
Department of Health,NHS Barnsley CCG,31/03/2017,C&M-GMS Global Sum,PRC DELEGATED CO-COMMISSIONING,NHS BARNLSEY CCG GP PRACTICE,16664594,"56,938.76 "
Department of Health,NHS Barnsley CCG,31/03/2017,C&M-GMS PCO Seniority,PRC DELEGATED CO-COMMISSIONING,NHS BARNLSEY CCG GP PRACTICE,16664594,995.05 
Department of Health,NHS Barnsley CCG,31/03/2017,C&M-GMS Prem Actual Rent,PRC DELEGATED CO-COMMISSIONING,NHS BARNLSEY CCG GP PRACTICE,16664594,"8,873.25 "
Department of Health,NHS Barnsley CCG,31/03/2017,C&M-GMS QOF Aspiration,PRC DELEGATED CO-COMMISSIONING,NHS BARNLSEY CCG GP PRACTICE,16664594,"7,060.35 "
Department of Health,NHS Barnsley CCG,31/03/2017,Hcare Srv Rec Fdtn Trust-Contract Baseline,ACUTE COMMISSIONING,SHEFFIELD TEACHING HOSPITALS NHS FOUNDATION TRUST,16299158,"191,466.00 "
Department of Health,NHS Barnsley CCG,31/03/2017,Hcare Srv Rec Fdtn Trust-Contract Baseline,ACUTE COMMISSIONING,SHEFFIELD TEACHING HOSPITALS NHS FOUNDATION TRUST,16299169,"1,901,486.00 "
Department of Health,NHS Barnsley CCG,31/03/2017,Hcare Srv Rec Fdtn Trust-Contract Baseline,ACUTE COMMISSIONING,SHEFFIELD TEACHING HOSPITALS NHS FOUNDATION TRUST,16299209,"(35,099.00)"
Department of Health,NHS Barnsley CCG,31/03/2017,Hcare Srv Rec Fdtn Trust-CQUIN,COMMUNITY SERVICES,SOUTH WEST YORKSHIRE PARTNERSHIP NHS FOUNDATION TRUST,16299054,"36,125.00 "
Department of Health,NHS Barnsley CCG,31/03/2017,Hcare Srv Rec Fdtn Trust-CQUIN,LEARNING DIFFICULTIES,SOUTH WEST YORKSHIRE PARTNERSHIP NHS FOUNDATION TRUST,16299054,"2,010.00 "
Department of Health,NHS Barnsley CCG,31/03/2017,Hcare Srv Rec Fdtn Trust-CQUIN,MENTAL HEALTH SERVICES - ADULTS,SOUTH WEST YORKSHIRE PARTNERSHIP NHS FOUNDATION TRUST,16299054,"24,553.00 "
Department of Health,NHS Barnsley CCG,31/03/2017,Hcare Srv Rec Fdtn Trust-CQUIN,MENTAL HEALTH SERVICES - OLDER PEOPLE,SOUTH WEST YORKSHIRE PARTNERSHIP NHS FOUNDATION TRUST,16299054,"4,322.00 "
Department of Health,NHS Barnsley CCG,31/03/2017,Hcare Srv Rec Fdtn Trust-Contract Baseline,COMMUNITY SERVICES,SOUTH WEST YORKSHIRE PARTNERSHIP NHS FOUNDATION TRUST,16299054,"2,901,982.00 "
Department of Health,NHS Barnsley CCG,31/03/2017,Hcare Srv Rec Fdtn Trust-Contract Baseline,LEARNING DIFFICULTIES,SOUTH WEST YORKSHIRE PARTNERSHIP NHS FOUNDATION TRUST,16299054,"160,876.00 "
Department of Health,NHS Barnsley CCG,31/03/2017,Hcare Srv Rec Fdtn Trust-Contract Baseline,MENTAL HEALTH SERVICES - ADULTS,SOUTH WEST YORKSHIRE PARTNERSHIP NHS FOUNDATION TRUST,16299054,"2,007,084.00 "
Department of Health,NHS Barnsley CCG,31/03/2017,Hcare Srv Rec Fdtn Trust-Contract Baseline,MENTAL HEALTH SERVICES - OLDER PEOPLE,SOUTH WEST YORKSHIRE PARTNERSHIP NHS FOUNDATION TRUST,16299054,"345,763.00 "
Department of Health,NHS Barnsley CCG,31/03/2017,Hcare Srv Rec Fdtn Trust-CQUIN,COMMUNITY SERVICES,SOUTH WEST YORKSHIRE PARTNERSHIP NHS FOUNDATION TRUST,16371908,"(146,673.00)"
Department of Health,NHS Barnsley CCG,31/03/2017,Hcare Srv Rec Fdtn Trust-CQUIN,COMMUNITY SERVICES,SOUTH WEST YORKSHIRE PARTNERSHIP NHS FOUNDATION TRUST,16456683,"146,673.00 "
Department of Health,NHS Barnsley CCG,31/03/2017,Clinical&Medical-Commercial Sector,NCAS/OATS,SPAMEDICA LTD,16298872,"28,033.12 "
Department of Health,NHS Barnsley CCG,31/03/2017,Cont Care- Palliative Care,CHC ADULT FULLY FUNDED,SUN HEALTHCARE LTD,16371835,"44,025.45 "
Department of Health,NHS Barnsley CCG,31/03/2017,C&M-PMS Contract Value,PRC DELEGATED CO-COMMISSIONING,NHS BARNLSEY CCG GP PRACTICE,16396605,"(60,894.58)"
Department of Health,NHS Barnsley CCG,31/03/2017,C&M-PMS GP Statutory Levy,PRC DELEGATED CO-COMMISSIONING,NHS BARNLSEY CCG GP PRACTICE,16396605,(289.57)
Department of Health,NHS Barnsley CCG,31/03/2017,C&M-PMS Out of Hours Opt Outs,PRC DELEGATED CO-COMMISSIONING,NHS BARNLSEY CCG GP PRACTICE,16396605,(86.60)
Department of Health,NHS Barnsley CCG,31/03/2017,C&M-PMS Prem Healthcentre Rent,PRC DELEGATED CO-COMMISSIONING,NHS BARNLSEY CCG GP PRACTICE,16396605,(0.88)
Department of Health,NHS Barnsley CCG,31/03/2017,C&M-PMS Voluntary Levy,PRC DELEGATED CO-COMMISSIONING,NHS BARNLSEY CCG GP PRACTICE,16396605,(50.65)
Department of Health,NHS Barnsley CCG,31/03/2017,ME-PMS GP Pension EEs-PMS,PRC DELEGATED CO-COMMISSIONING,NHS BARNLSEY CCG GP PRACTICE,16396605,"(1,615.80)"
Department of Health,NHS Barnsley CCG,31/03/2017,ME-PMS GP Pension ERs Adjs - PMS,PRC DELEGATED CO-COMMISSIONING,NHS BARNLSEY CCG GP PRACTICE,16396605,"(1,967.45)"
Department of Health,NHS Barnsley CCG,31/03/2017,C&M-PMS Contract Value,PRC DELEGATED CO-COMMISSIONING,NHS BARNLSEY CCG GP PRACTICE,16396606,"128,551.23 "
Department of Health,NHS Barnsley CCG,31/03/2017,C&M-PMS Out of Hours Opt Outs,PRC DELEGATED CO-COMMISSIONING,NHS BARNLSEY CCG GP PRACTICE,16396606,"(3,388.65)"
Department of Health,NHS Barnsley CCG,31/03/2017,C&M-PMS PCO Seniority,PRC DELEGATED CO-COMMISSIONING,NHS BARNLSEY CCG GP PRACTICE,16396606,"2,873.93 "
Department of Health,NHS Barnsley CCG,31/03/2017,C&M-PMS Prem Actual Rent,PRC DELEGATED CO-COMMISSIONING,NHS BARNLSEY CCG GP PRACTICE,16396606,336.75 
Department of Health,NHS Barnsley CCG,31/03/2017,C&M-PMS Prem Healthcentre Rent,PRC DELEGATED CO-COMMISSIONING,NHS BARNLSEY CCG GP PRACTICE,16396606,"15,940.23 "
Department of Health,NHS Barnsley CCG,31/03/2017,C&M-PMS QOF Aspiration,PRC DELEGATED CO-COMMISSIONING,NHS BARNLSEY CCG GP PRACTICE,16396606,"6,208.13 "
Department of Health,NHS Barnsley CCG,31/03/2017,C&M-PMS Contract Value,PRC DELEGATED CO-COMMISSIONING,NHS BARNLSEY CCG GP PRACTICE,16400635,"(33,272.47)"
Department of Health,NHS Barnsley CCG,31/03/2017,C&M-PMS GP Statutory Levy,PRC DELEGATED CO-COMMISSIONING,NHS BARNLSEY CCG GP PRACTICE,16400635,(154.68)
Department of Health,NHS Barnsley CCG,31/03/2017,C&M-PMS Out of Hours Opt Outs,PRC DELEGATED CO-COMMISSIONING,NHS BARNLSEY CCG GP PRACTICE,16400635,(34.28)
Department of Health,NHS Barnsley CCG,31/03/2017,C&M-PMS Voluntary Levy,PRC DELEGATED CO-COMMISSIONING,NHS BARNLSEY CCG GP PRACTICE,16400635,(27.06)
Department of Health,NHS Barnsley CCG,31/03/2017,ME-PMS GP Pension EEs-PMS,PRC DELEGATED CO-COMMISSIONING,NHS BARNLSEY CCG GP PRACTICE,16400635,"(1,041.66)"
Department of Health,NHS Barnsley CCG,31/03/2017,ME-PMS GP Pension ERs Adjs - PMS,PRC DELEGATED CO-COMMISSIONING,NHS BARNLSEY CCG GP PRACTICE,16400635,"(1,191.66)"
Department of Health,NHS Barnsley CCG,31/03/2017,C&M-PMS Contract Value,PRC DELEGATED CO-COMMISSIONING,NHS BARNLSEY CCG GP PRACTICE,16400636,"69,716.76 "
Department of Health,NHS Barnsley CCG,31/03/2017,C&M-PMS DES Extended Hours Access,PRC DELEGATED CO-COMMISSIONING,NHS BARNLSEY CCG GP PRACTICE,16400636,"4,452.66 "
Department of Health,NHS Barnsley CCG,31/03/2017,C&M-PMS DES Learn Dsblty Hlth Chk,PRC DELEGATED CO-COMMISSIONING,NHS BARNLSEY CCG GP PRACTICE,16400636,"2,552.00 "
Department of Health,NHS Barnsley CCG,31/03/2017,C&M-PMS Out of Hours Opt Outs,PRC DELEGATED CO-COMMISSIONING,NHS BARNLSEY CCG GP PRACTICE,16400636,"(1,840.13)"
Department of Health,NHS Barnsley CCG,31/03/2017,C&M-PMS PCO Seniority,PRC DELEGATED CO-COMMISSIONING,NHS BARNLSEY CCG GP PRACTICE,16400636,"1,001.81 "
Department of Health,NHS Barnsley CCG,31/03/2017,C&M-PMS Prem Healthcentre Rent,PRC DELEGATED CO-COMMISSIONING,NHS BARNLSEY CCG GP PRACTICE,16400636,"1,189.84 "
Department of Health,NHS Barnsley CCG,31/03/2017,C&M-PMS Prem Rates,PRC DELEGATED CO-COMMISSIONING,NHS BARNLSEY CCG GP PRACTICE,16400636,"3,064.86 "
Department of Health,NHS Barnsley CCG,31/03/2017,C&M-PMS QOF Aspiration,PRC DELEGATED CO-COMMISSIONING,NHS BARNLSEY CCG GP PRACTICE,16400636,"4,059.35 "
Department of Health,NHS Barnsley CCG,31/03/2017,Hcare Srv Rec NHS Trust-Contract Baseline,AMBULANCE SERVICES,YORKSHIRE AMBULANCE SERVICE NHS TRUST,16299289,"608,043.00 "
Department of Health,NHS Barnsley CCG,31/03/2017,Hcare Srv Rec NHS Trust-Non Contract,WINTER PRESSURES,YORKSHIRE AMBULANCE SERVICE NHS TRUST,16299297,"35,333.33 "
Department of Health,NHS Barnsley CCG,31/03/2017,Hcare Srv Rec NHS Trust-Contract Baseline,PATIENT TRANSPORT,YORKSHIRE AMBULANCE SERVICE NHS TRUST,16299308,"125,707.67 "
Department of Health,NHS Barnsley CCG,31/03/2017,Hcare Srv Rec NHS Trust-Contract Baseline,NHS 111,YORKSHIRE AMBULANCE SERVICE NHS TRUST,16299316,"47,766.40 "
,,,,,,,"33,482,876.09 "
